bitfinex-derivatives/quotes_ETHF0:USTF0_20260201
["timestamp","ask_amount","ask_price","bid_price","bid_amount"]
[1769944024161,3.91826291,2391.0,2390.0,4.00850715]
[1769944025058,3.91826291,2391.0,2390.2,4.00850715]
[1769944025560,3.91826291,2391.0,2390.3,1.28853954]
[1769944025866,3.91402576,2390.9,2389.5,4.00850715]
[1769944026456,3.91402576,2390.9,2389.7,4.00850715]
[1769944026857,3.91402576,2390.9,2389.7,4.01356366]
[1769944028260,3.91402576,2390.9,2389.8,1.28853954]
[1769944028462,3.91402576,2390.9,2389.9,3.73279523]
[1769944028856,3.91402576,2390.9,2390.0,1.28853954]
[1769944029056,3.91402576,2390.9,2389.8,1.28853954]
[1769944029460,3.91402576,2390.9,2389.9,3.73279523]
[1769944030866,2.41731899,2390.8,2389.9,3.73279523]
[1769944031263,2.41731899,2390.8,2390.0,5.02133477]
[1769944031463,2.41731899,2390.8,2390.0,3.73279523]
[1769944031959,40.17032842,2390.9,2389.7,0.00505651]
[1769944031960,2.41731899,2390.9,2390.2,3.73279523]
[1769944032265,2.42155614,2391.0,2390.2,3.73279523]
[1769944032457,2.42155614,2391.0,2389.9,1.28853954]
[1769944032458,3.8984531,2390.9,2390.3,1.28853954]
[1769944032654,3.8984531,2390.8,2390.0,1.28853954]
[1769944032862,3.8984531,2390.7,2390.0,1.28853954]
[1769944033464,2.41731899,2390.9,2390.0,1.28853954]
[1769944033763,2.41731899,2390.9,2390.1,3.73279523]
[1769944034258,2.41731899,2390.9,2390.2,1.28853954]
[1769944034661,6.31577209,2390.9,2390.2,1.28853954]
[1769944035258,3.8984531,2390.8,2390.2,1.28853954]
[1769944035460,6.31577209,2390.8,2389.7,0.00505651]
[1769944035658,3.8984531,2390.7,2389.9,1.28853954]
[1769944036266,6.31577209,2390.3,2389.9,1.28853954]
[1769944036557,6.31577209,2390.4,2389.9,1.28853954]
[1769944036755,3.8984531,2390.3,2389.9,1.28853954]
[1769944036956,3.8984531,2390.2,2389.7,0.00505651]
[1769944037156,3.8984531,2390.2,2389.8,1.28853954]
[1769944039163,3.8984531,2390.1,2389.8,1.28853954]
[1769944039664,3.8984531,2390.1,2389.7,0.00505651]
[1769944040964,6.31577209,2390.2,2389.7,0.00505651]
[1769944042266,3.8984531,2390.2,2389.7,0.00505651]
[1769944043262,2.41731899,2390.3,2389.7,3.73785174]
[1769944043464,6.31577209,2390.3,2389.7,0.00505651]
[1769944043662,3.8984531,2390.2,2389.7,0.00505651]
[1769944043864,3.8984531,2390.0,2389.7,0.00505651]
[1769944044862,3.8984531,2389.9,2389.7,0.00505651]
[1769944045062,3.8984531,2389.9,2389.1,3.73279523]
[1769944045263,6.31577209,2389.9,2389.1,3.73279523]
[1769944045868,3.8984531,2389.8,2389.1,3.73279523]
[1769944046165,3.8984531,2389.8,2389.1,3.73657261]
[1769944046468,6.31577209,2390.0,2389.1,3.73657261]
[1769944048266,2.41731899,2390.0,2389.1,3.73657261]
[1769944048668,2.41731899,2390.1,2389.1,3.73657261]
[1769944049167,2.41731899,2390.2,2389.1,3.73657261]
[1769944049367,2.41731899,2390.3,2389.1,3.73657261]
[1769944049768,36.25630266,2390.8,2389.3,0.62637623]
[1769944049964,40.15475576,2390.9,2389.4,0.62637623]
[1769944050972,40.15475576,2390.9,2389.6,0.65024302]
[1769944051570,3.8984531,2390.9,2389.6,0.65024302]
[1769944051771,40.15475576,2390.9,2389.6,0.65024302]
[1769944051974,3.8984531,2390.8,2389.6,0.65024302]
[1769944057173,3.8984531,2390.8,2389.8,0.59674876]
[1769944057369,3.8984531,2390.8,2389.7,4.30350142]
[1769944057873,3.8984531,2390.8,2389.8,0.60250142]
[1769944058172,3.8984531,2390.8,2389.7,3.701]
[1769944058672,3.8984531,2390.8,2389.7,4.30350142]
[1769944058972,3.8984531,2390.8,2389.8,0.59972114]
[1769944059765,0.00423715,2391.0,2389.8,0.59972114]
[1769944059975,3.86633469,2391.0,2389.8,0.59972114]
[1769944061475,0.00423715,2391.0,2389.8,0.59972114]
[1769944061669,3.86633469,2391.0,2389.8,0.59972114]
[1769944062373,0.00423715,2391.0,2389.9,0.60008638]
[1769944062576,3.86633469,2391.0,2389.9,0.60008638]
[1769944063675,3.86633469,2391.0,2390.1,0.58468082]
[1769944063870,0.00423715,2391.0,2390.1,0.58468082]
[1769944064070,3.93012524,2391.3,2390.1,0.58468082]
[1769944064665,36.25630266,2391.8,2390.2,0.57867606]
[1769944064872,3.93012524,2391.7,2390.2,0.57867606]
[1769944065072,3.93370095,2391.7,2390.2,0.57867606]
[1769944070373,3.93370095,2391.7,2390.2,2.455]
[1769944070774,3.93370095,2391.7,2390.3,0.57034658]
[1769944072677,3.93370095,2391.7,2390.2,2.455]
[1769944072877,3.93370095,2391.7,2390.3,0.55515944]
[1769944073576,3.93370095,2391.7,2390.2,2.455]
[1769944073971,3.93370095,2391.7,2390.2,3.01015944]
[1769944074571,3.93370095,2391.7,2390.3,0.55515944]
[1769944077781,3.93012524,2391.6,2390.3,2.455]
[1769944078377,3.93012524,2391.6,2389.9,5.51639618]
[1769944078578,3.93012524,2391.5,2389.9,2.455]
[1769944079279,8.84412524,2391.5,2389.9,2.50432114]
[1769944079479,8.84412524,2391.5,2389.4,0.55494632]
[1769944079480,3.93012524,2390.9,2389.4,0.55494632]
[1769944080381,3.93012524,2390.9,2389.5,0.55494632]
[1769944080576,3.93012524,2390.9,2389.4,2.50432114]
[1769944080781,3.93012524,2390.9,2389.3,2.50432114]
[1769944081082,3.93012524,2390.9,2389.3,3.06491916]
[1769944081283,3.93012524,2390.9,2389.4,0.56059802]
[1769944082580,3.93012524,2390.9,2389.5,4.547]
[1769944084189,3.93012524,2390.9,2389.4,3.06491916]
[1769944084388,3.93012524,2390.9,2389.4,0.56059802]
[1769944084587,3.93012524,2390.8,2389.4,0.56059802]
[1769944084788,3.93012524,2390.8,2389.3,3.52]
[1769944085686,40.1864279,2390.7,2389.1,0.00377738]
[1769944085886,3.93012524,2390.6,2389.1,0.00377738]
[1769944086086,3.93012524,2390.5,2389.1,0.00377738]
[1769944086588,3.93012524,2390.3,2389.1,0.00377738]
[1769944090691,3.93012524,2390.3,2389.1,0.69110927]
[1769944091286,3.93012524,2390.3,2389.2,5.783]
[1769944092194,3.93012524,2390.3,2389.3,0.68811013]
[1769944093099,3.93012524,2390.3,2389.4,2.455]
[1769944094101,3.93012524,2390.3,2389.4,3.14081732]
[1769944094698,3.93012524,2390.3,2389.5,0.68581732]
[1769944095596,3.93012524,2390.3,2389.4,2.455]
[1769944096298,3.93012524,2390.3,2389.4,3.509]
[1769944099189,3.93012524,2390.3,2389.2,0.65362621]
[1769944099399,3.93012524,2390.3,2389.3,2.692]
[1769944099797,3.93012524,2390.3,2389.3,3.34379726]
[1769944099997,3.93012524,2390.3,2389.4,0.65179726]
[1769944100403,3.93012524,2390.3,2389.5,3.837]
[1769944102101,3.93012524,2390.3,2389.5,4.4874264]
[1769944102302,4.00532872,2390.6,2389.7,0.6504264]
[1769944103401,4.00532872,2391.1,2389.9,0.7065191]
[1769944103594,4.00532872,2391.1,2389.7,2.50432114]
[1769944103801,4.00532872,2391.1,2389.8,3.539]
[1769944104199,4.00532872,2391.1,2389.9,0.7065191]
[1769944104804,4.00532872,2391.1,2389.8,3.539]
[1769944105799,4.00532872,2391.1,2389.8,4.25005906]
[1769944106099,4.00532872,2391.1,2389.9,0.71105906]
[1769944106299,4.00532872,2391.1,2390.0,0.71105906]
[1769944106806,4.00532872,2391.1,2390.1,0.71105906]
[1769944107404,4.00532872,2391.4,2390.2,0.70282096]
[1769944107604,4.00532872,2391.4,2390.3,0.70282096]
[1769944109306,4.00532872,2391.4,2390.5,0.77592218]
[1769944109508,4.00532872,2391.4,2390.6,3.685]
[1769944109706,4.00532872,2391.4,2390.7,0.77592218]
[1769944110103,4.00532872,2391.4,2390.6,3.685]
[1769944110807,4.00532872,2391.4,2390.4,0.77592218]
[1769944111008,4.00532872,2391.4,2390.5,3.684]
[1769944111907,4.00532872,2391.4,2390.2,3.25760597]
[1769944112110,4.00532872,2391.4,2390.3,5.377]
[1769944112608,4.00532872,2391.4,2390.3,6.13028483]
[1769944112808,4.00532872,2391.4,2390.4,0.72938546]
[1769944114107,4.00532872,2391.4,2390.5,3.683]
[1769944115506,4.00532872,2391.4,2390.5,4.40928577]
[1769944115714,0.00357571,2391.7,2390.5,4.40928577]
[1769944115715,4.00532872,2391.6,2390.6,0.72628577]
[1769944118211,4.00532872,2391.6,2390.3,3.2261492]
[1769944118511,4.00532872,2391.6,2390.5,0.72182806]
[1769944119405,4.00532872,2391.6,2390.4,5.382]
[1769944120008,4.00532872,2391.6,2390.3,0.75407907]
[1769944120207,4.00532872,2391.6,2390.4,5.54]
[1769944122921,4.00532872,2391.6,2390.5,3.637]
[1769944130028,4.00532872,2391.6,2390.3,4.58686186]
[1769944130227,4.00532872,2391.6,2390.3,2.092]
[1769944131528,3.85152867,2391.5,2390.3,2.092]
[1769944132431,3.85152867,2391.5,2390.0,3.00106518]
[1769944132432,3.85152867,2391.5,2390.0,2.50186368]
[1769944132629,3.85152867,2391.5,2390.0,5.95686368]
[1769944133128,3.85477078,2391.4,2390.0,5.95686368]
[1769944133831,3.85477078,2391.4,2390.1,0.49397444]
[1769944134027,3.85477078,2391.4,2390.1,2.99583812]
[1769944134229,3.85477078,2391.4,2390.1,2.50186368]
[1769944135221,3.85477078,2391.4,2390.2,3.68]
[1769944135431,3.85477078,2391.4,2390.2,6.6705771]
[1769944135730,3.85477078,2391.4,2390.3,0.48871342]
[1769944135929,3.85477078,2391.4,2390.4,2.9905771]
[1769944136526,3.860977,2391.7,2390.7,0.48871342]
[1769944136921,3.860977,2391.7,2390.7,2.9905771]
[1769944139331,0.00357571,2391.7,2390.8,3.05835279]
[1769944139524,3.82351344,2391.9,2391.0,3.05835279]
[1769944139724,3.82351344,2391.9,2391.1,3.68]
[1769944140229,3.82351344,2392.3,2391.2,0.55648911]
[1769944140430,3.82666693,2392.3,2391.5,3.05835279]
[1769944140834,3.82666693,2392.3,2391.6,0.56252666]
[1769944141129,3.82049467,2392.5,2391.6,0.56252666]
[1769944141636,3.82049467,2392.5,2391.1,2.50186368]
[1769944141934,3.82049467,2392.3,2391.0,2.669]
[1769944143334,3.82948675,2392.1,2391.0,3.508]
[1769944145635,6.25363032,2392.1,2390.8,0.00499961]
[1769944145840,3.84024388,2391.7,2390.4,2.454]
[1769944146229,3.84024388,2391.7,2390.2,2.50186368]
[1769944146434,3.83774407,2391.5,2390.1,4.59386368]
[1769944146634,3.83774407,2391.5,2390.2,3.365]
[1769944147038,3.83774407,2391.5,2390.2,3.36905584]
[1769944147441,3.83774407,2391.5,2390.2,6.40978879]
[1769944147845,3.83774407,2391.5,2390.3,0.53886927]
[1769944148643,3.83774407,2391.5,2390.4,3.04073295]
[1769944149243,3.83774407,2391.5,2390.5,0.56060257]
[1769944149446,4.84049482,2392.1,2390.5,0.56060257]
[1769944149447,3.82272865,2391.8,2390.6,0.56060257]
[1769944149743,3.82272865,2391.8,2390.7,0.56060257]
[1769944151250,3.82272865,2391.8,2390.7,3.06246625]
[1769944151449,3.82272865,2391.8,2390.8,0.57352533]
[1769944151943,3.82272865,2391.8,2390.9,0.57352533]
[1769944152147,3.82272865,2391.8,2391.0,4.25552533]
[1769944152344,3.81626727,2392.2,2391.2,0.57352533]
[1769944153053,3.81626727,2392.2,2391.1,2.092]
[1769944153247,3.81626727,2392.2,2390.9,3.08200687]
[1769944153449,3.81626727,2392.2,2391.0,5.501]
[1769944154151,3.81626727,2392.2,2391.1,3.682]
[1769944157455,3.81626727,2392.2,2391.2,0.60602087]
[1769944160049,3.81626727,2392.2,2391.3,0.615164]
[1769944161759,3.79055442,2392.5,2391.3,0.615164]
[1769944161958,3.79055442,2392.5,2391.4,0.63426859]
[1769944162349,3.79055442,2392.5,2391.3,2.50186368]
[1769944162553,3.6960835,2392.3,2391.0,3.13613227]
[1769944163357,3.6960835,2392.2,2390.6,3.0997871]
[1769944163560,3.6960835,2391.9,2390.6,5.6087871]
[1769944163861,3.6960835,2391.9,2390.6,2.509]
[1769944167767,3.6960835,2391.9,2390.7,3.10974597]
[1769944169066,3.6960835,2391.9,2390.8,3.10926632]
[1769944169761,3.6960835,2391.9,2390.9,3.10926632]
[1769944170563,3.6960835,2392.4,2390.9,3.10926632]
[1769944170763,3.6960835,2392.4,2391.3,3.12153272]
[1769944170966,3.6960835,2392.4,2391.5,3.12153272]
[1769944172165,0.00465878,2392.5,2391.5,3.12153272]
[1769944172670,3.70074228,2392.5,2391.5,3.12153272]
[1769944176872,3.70074228,2392.5,2391.6,5.766]
[1769944177468,3.70074228,2392.5,2391.4,3.10345712]
[1769944177663,3.70074228,2392.5,2391.5,5.766]
[1769944178279,3.70074228,2392.5,2391.6,3.676]
[1769944178476,3.70074228,2392.5,2391.6,6.77441818]
[1769944181582,3.70074228,2392.5,2391.6,3.676]
[1769944181976,3.70074228,2392.5,2391.4,3.24798292]
[1769944182180,3.70074228,2392.5,2391.7,3.679]
[1769944182477,3.70074228,2392.5,2391.8,3.837]
[1769944182681,3.70074228,2392.5,2391.9,3.837]
[1769944182882,3.70074228,2392.5,2391.9,3.84198882]
[1769944183278,3.70074228,2392.5,2391.3,4.05533063]
[1769944183487,3.70074228,2392.5,2391.4,6.33]
[1769944184481,3.70074228,2392.5,2391.4,6.33352693]
[1769944184682,3.70074228,2392.5,2391.5,3.96295941]
[1769944185583,3.70074228,2392.5,2391.4,6.33352693]
[1769944186084,3.70074228,2392.5,2391.5,3.96295941]
[1769944187476,0.00465878,2392.5,2391.5,3.96295941]
[1769944188279,3.95458425,2392.8,2391.6,3.96295941]
[1769944188479,3.95458425,2392.8,2391.7,3.96295941]
[1769944189285,3.95838282,2392.8,2391.7,3.96295941]
[1769944191586,3.95838282,2392.8,2391.6,3.666]
[1769944192985,3.95838282,2392.8,2391.7,3.96295941]
[1769944193282,3.95838282,2392.8,2391.5,7.64295941]
[1769944193587,3.95838282,2392.8,2391.6,3.96295941]
[1769944196387,3.95838282,2392.8,2391.7,3.96295941]
[1769944199287,3.95838282,2392.8,2391.8,3.96295941]
[1769944200385,3.95838282,2392.8,2391.9,3.96295941]
[1769944200784,0.00379857,2392.8,2391.9,3.96295941]
[1769944201085,4.84049482,2393.3,2392.4,3.96295941]
[1769944201086,3.95458425,2393.3,2392.4,3.96295941]
[1769944201284,3.95458425,2393.3,2392.5,7.64895941]
[1769944201484,3.95458425,2393.3,2392.5,3.686]
[1769944202089,3.95864899,2393.3,2392.5,3.686]
[1769944202285,3.95864899,2393.3,2392.5,7.64895941]
[1769944203190,3.95864899,2393.3,2392.1,7.6774448]
[1769944203391,3.95458425,2393.1,2392.1,2.091]
[1769944203587,3.95458425,2393.1,2392.2,3.689]
[1769944203782,3.95458425,2393.1,2391.7,7.6774448]
[1769944203988,3.95458425,2392.7,2391.4,6.05748634]
[1769944204284,3.95458425,2392.4,2391.4,0.00352693]
[1769944208183,3.95458425,2392.4,2391.4,3.71578432]
[1769944209292,3.95458425,2392.4,2391.4,0.00352693]
[1769944210698,3.95458425,2392.4,2391.4,3.71578432]
[1769944212492,3.88589638,2392.8,2391.6,3.71225739]
[1769944212796,3.88589638,2392.8,2391.7,3.71225739]
[1769944213793,3.88589638,2392.8,2391.8,5.774]
[1769944214194,3.88589638,2392.8,2391.8,9.48625739]
[1769944214394,3.88589638,2392.8,2391.9,3.683]
[1769944214594,3.88589638,2392.8,2391.4,0.00352693]
[1769944214796,6.3062832,2392.7,2391.4,0.00352693]
[1769944214998,3.88589638,2392.5,2391.4,0.00352693]
[1769944216104,3.88589638,2392.5,2390.8,4.95861096]
[1769944216105,3.88589638,2392.2,2391.1,2.453]
[1769944217000,3.88589638,2392.2,2391.1,2.45785364]
[1769944217695,3.88589638,2392.1,2390.5,3.71448539]
[1769944217998,3.88589638,2392.0,2390.6,2.453]
[1769944218195,3.88589638,2392.0,2390.4,3.71225739]
[1769944218395,3.88589638,2391.8,2390.5,3.022]
[1769944218702,3.88589638,2391.8,2390.5,3.02604155]
[1769944219401,3.88589638,2391.8,2390.5,0.00404155]
[1769944219796,3.88589638,2391.7,2390.5,0.00404155]
[1769944221807,3.88589638,2391.7,2390.3,2.453]
[1769944222006,3.88589638,2391.6,2390.3,2.453]
[1769944222905,3.89043594,2391.6,2390.3,2.45782076]
[1769944223403,2.40827248,2392.2,2390.4,3.71225739]
[1769944223603,7.1851225,2392.9,2390.3,2.45782076]
[1769944223604,4.84049482,2393.6,2391.3,3.71225739]
[1769944223803,5.1,2394.0,2391.2,2.49247722]
[1769944223804,4.84049482,2393.7,2391.5,3.71225739]
[1769944224004,4.84049482,2393.8,2391.5,3.71225739]
[1769944224205,9.02289482,2393.9,2391.5,3.71225739]
[1769944224504,9.02685876,2393.9,2391.5,3.71225739]
[1769944224700,4.1824,2393.8,2391.5,3.71225739]
[1769944225407,3.88589638,2393.7,2391.5,3.71225739]
[1769944225802,3.88589638,2393.7,2391.6,3.71225739]
[1769944226307,3.88589638,2393.6,2391.6,3.71225739]
[1769944228511,3.88589638,2393.4,2391.6,3.71225739]
[1769944228904,3.88589638,2392.9,2391.6,3.71225739]
[1769944229104,3.88589638,2392.9,2391.6,6.16525739]
[1769944229309,3.88589638,2392.7,2391.7,3.71225739]
[1769944229511,3.88589638,2393.3,2391.7,3.71225739]
[1769944229711,3.88589638,2393.1,2391.7,3.71225739]
[1769944231010,4.1824,2392.7,2391.7,3.71225739]
[1769944231314,3.88589638,2392.6,2391.6,2.453]
[1769944231511,3.88589638,2392.5,2391.6,2.453]
[1769944232011,3.88589638,2392.5,2391.4,3.71225739]
[1769944232209,3.88589638,2392.3,2391.4,3.71225739]
[1769944232913,8.06829638,2392.3,2391.4,3.71225739]
[1769944233112,3.88589638,2392.1,2391.1,3.71225739]
[1769944233309,3.89096726,2392.1,2390.9,3.71225739]
[1769944233512,3.88589638,2391.9,2391.0,3.71225739]
[1769944234014,8.06829638,2391.9,2391.0,3.71225739]
[1769944234510,3.88589638,2391.9,2391.0,3.71225739]
[1769944236115,3.88589638,2391.8,2390.6,2.49247722]
[1769944236412,3.88589638,2391.1,2390.1,3.71225739]
[1769944236817,3.88589638,2390.7,2389.8,3.71225739]
[1769944237017,8.06829638,2391.8,2390.4,3.69765445]
[1769944237217,3.88589638,2391.7,2390.5,3.675]
[1769944237615,3.99118138,2391.6,2390.5,3.675]
[1769944238016,3.99118138,2392.0,2390.5,3.67845908]
[1769944238511,3.99118138,2391.7,2390.5,3.67845908]
[1769944239008,3.99118138,2391.6,2390.5,7.74754319]
[1769944239206,3.99118138,2391.6,2390.6,4.06908411]
[1769944239609,8.17358138,2391.6,2390.6,4.06908411]
[1769944240614,3.99118138,2392.0,2390.6,4.06908411]
[1769944245522,3.79108942,2391.9,2390.6,4.06908411]
[1769944245723,3.79108942,2391.8,2390.6,4.06908411]
[1769944246520,3.79108942,2391.7,2390.6,4.06908411]
[1769944246719,3.79108942,2391.5,2390.6,4.06908411]
[1769944247223,7.97348942,2391.5,2390.6,4.06908411]
[1769944248723,7.97348942,2391.4,2390.7,3.681]
[1769944248918,3.79108942,2391.4,2390.7,3.681]
[1769944249124,4.1824,2391.0,2390.5,2.09545908]
[1769944249323,3.79108942,2391.2,2390.5,2.09545908]
[1769944249625,4.1824,2391.0,2390.5,2.09545908]
[1769944249826,4.1824,2391.0,2390.5,6.04490583]
[1769944250022,4.1824,2390.9,2390.5,6.04490583]
[1769944250217,3.79108942,2391.2,2390.5,6.04490583]
[1769944250218,4.1824,2391.0,2390.5,6.04490583]
[1769944250620,4.1824,2390.9,2390.5,6.04490583]
[1769944250825,4.1824,2391.0,2390.5,6.04490583]
[1769944251227,3.79108942,2391.5,2390.6,3.94944675]
[1769944251622,4.1824,2391.3,2390.6,3.94944675]
[1769944252025,4.1824,2391.2,2390.6,3.94944675]
[1769944252226,4.1824,2391.3,2390.6,3.94944675]
[1769944252624,4.1824,2391.2,2390.6,3.94944675]
[1769944252928,4.1824,2391.3,2390.6,3.94944675]
[1769944253124,4.1824,2391.4,2390.6,3.94944675]
[1769944253328,4.1824,2391.7,2390.6,3.94944675]
[1769944253527,4.1824,2391.5,2390.6,3.94944675]
[1769944253926,4.1824,2391.4,2390.6,3.94944675]
[1769944254130,4.1824,2391.5,2390.6,3.94944675]
[1769944254530,4.1824,2391.4,2390.6,3.94944675]
[1769944254731,3.79108942,2391.5,2390.6,3.94944675]
[1769944254931,4.1824,2391.4,2390.6,3.94944675]
[1769944255332,4.1824,2391.3,2390.6,3.94944675]
[1769944255534,4.1824,2391.4,2390.6,3.94944675]
[1769944256037,4.1824,2391.3,2390.6,3.94944675]
[1769944256239,4.1824,2391.4,2390.6,3.94944675]
[1769944256537,4.1824,2391.3,2390.6,3.94944675]
[1769944256736,4.1824,2391.4,2390.6,3.94944675]
[1769944257134,4.1824,2391.3,2390.6,3.94944675]
[1769944257334,4.1824,2391.4,2390.6,3.94944675]
[1769944257936,4.1824,2391.3,2390.6,3.94944675]
[1769944258333,4.1824,2391.2,2390.6,3.94944675]
[1769944258534,4.1824,2391.3,2390.6,3.94944675]
[1769944258734,4.79108942,2392.0,2390.6,3.94944675]
[1769944258938,7.97348942,2391.9,2390.7,3.94944675]
[1769944259334,4.1824,2391.8,2390.8,3.94944675]
[1769944259529,4.1824,2391.8,2391.0,3.94944675]
[1769944259729,1.0,2392.0,2391.0,3.94944675]
[1769944259931,4.1824,2391.8,2391.0,3.94944675]
[1769944260335,4.1824,2391.7,2391.0,3.94944675]
[1769944260638,4.1824,2391.8,2391.0,3.94944675]
[1769944261039,4.1824,2391.7,2391.0,3.94944675]
[1769944261240,4.1824,2391.8,2391.0,3.94944675]
[1769944261639,4.1824,2391.7,2391.0,3.94944675]
[1769944261942,4.1824,2391.1,2390.7,3.94944675]
[1769944262142,4.1824,2391.5,2390.7,3.94944675]
[1769944262345,4.1824,2391.6,2390.7,3.94944675]
[1769944262540,1.0,2392.0,2391.0,3.94944675]
[1769944262741,1.0,2392.0,2391.1,3.94944675]
[1769944262939,4.1824,2391.9,2391.3,3.94944675]
[1769944263134,1.0,2392.0,2391.3,3.94944675]
[1769944263340,4.1824,2391.9,2391.3,3.94944675]
[1769944263843,3.79108942,2391.9,2391.2,3.698]
[1769944264144,4.1824,2391.6,2391.2,3.698]
[1769944264538,4.1824,2391.4,2391.2,3.698]
[1769944264843,4.1824,2391.5,2391.1,3.702]
[1769944265045,4.1824,2391.6,2391.1,3.702]
[1769944265742,3.79108942,2391.9,2391.2,3.94944675]
[1769944266642,1.0,2392.0,2391.2,3.94944675]
[1769944267139,4.79108942,2392.0,2391.2,3.94944675]
[1769944267339,4.08408326,2391.9,2391.1,3.702]
[1769944269041,4.08408326,2391.9,2391.0,3.712]
[1769944269845,4.08408326,2391.9,2390.8,3.712]
[1769944270245,4.08408326,2391.8,2390.8,3.712]
[1769944270542,40.25283917,2391.8,2390.5,0.00345908]
[1769944270743,4.08408326,2391.7,2390.5,3.71545908]
[1769944270945,4.08408326,2391.7,2390.6,4.06913324]
[1769944271645,36.16875591,2391.8,2390.6,4.06913324]
[1769944271646,1.0,2391.0,2390.6,4.06913324]
[1769944272043,4.08408326,2391.6,2390.6,4.06913324]
[1769944273144,4.08408326,2391.6,2390.5,3.71545908]
[1769944276245,4.08408326,2391.6,2390.5,7.78459232]
[1769944279548,4.08408326,2391.6,2390.6,4.06913324]
[1769944279750,4.08408326,2391.6,2390.5,3.71545908]
[1769944280254,4.08408326,2391.6,2390.5,7.78459232]
[1769944281749,4.08408326,2391.6,2390.6,4.06913324]
[1769944283156,4.08408326,2391.6,2390.5,3.71545908]
[1769944283346,4.08408326,2391.6,2390.5,0.00345908]
[1769944283653,4.08408326,2391.3,2390.5,0.00345908]
[1769944285656,4.08408326,2391.3,2390.2,3.709]
[1769944286654,4.08408326,2391.3,2390.2,3.71193873]
[1769944287155,4.08408326,2391.3,2390.2,7.78107197]
[1769944289255,4.08408326,2391.3,2390.2,3.71193873]
[1769944289657,4.08408326,2391.2,2390.3,4.06913324]
[1769944292155,4.08408326,2391.2,2390.2,3.71193873]
[1769944294258,4.08408326,2391.2,2390.2,0.00293873]
[1769944294450,6.50491242,2391.2,2390.2,0.00293873]
[1769944294655,4.08408326,2391.1,2390.2,0.00293873]
[1769944295261,4.08408326,2391.0,2390.2,0.00293873]
[1769944297557,6.50491242,2391.0,2390.2,0.00293873]
[1769944297756,36.16875591,2391.1,2390.2,0.00293873]
[1769944297757,4.08714249,2390.8,2390.2,0.00293873]
[1769944297956,4.08714249,2390.8,2389.7,2.454]
[1769944298355,4.08714249,2390.8,2389.8,3.89933937]
[1769944299053,4.08714249,2390.8,2389.8,3.90281611]
[1769944299653,4.08714249,2391.1,2389.9,3.89933937]
[1769944302262,4.08714249,2391.1,2390.0,3.89933937]
[1769944306367,4.08714249,2391.1,2390.0,7.60433937]
[1769944306860,4.08714249,2391.1,2390.1,4.08080776]
[1769944309667,3.79313892,2391.2,2390.1,4.08080776]
[1769944310870,3.79313892,2391.2,2390.1,7.78580776]
[1769944311171,3.79313892,2391.1,2390.0,3.705]
[1769944311367,3.79313892,2391.1,2390.0,7.78580776]
[1769944312270,2.42082916,2391.2,2389.8,0.00347674]
[1769944312271,3.79313892,2390.7,2389.8,0.00347674]
[1769944312466,3.79313892,2390.6,2389.8,0.00347674]
[1769944313669,3.79313892,2390.6,2389.8,4.0842845]
[1769944313865,3.79313892,2390.8,2389.8,4.0842845]
[1769944314067,3.79313892,2390.8,2389.9,4.08080776]
[1769944314573,6.21396808,2391.1,2390.0,4.08080776]
[1769944316872,6.21396808,2391.3,2390.1,4.08080776]
[1769944317065,2.42082916,2391.5,2390.4,4.08080776]
[1769944317264,6.21396808,2391.5,2390.4,4.08080776]
[1769944319171,3.79313892,2391.5,2390.4,4.08080776]
[1769944320974,6.21396808,2391.7,2390.5,4.08080776]
[1769944321173,6.21396808,2391.9,2390.6,4.08080776]
[1769944321573,3.79313892,2391.8,2390.6,4.08080776]
[1769944322073,3.79313892,2391.8,2390.7,4.08080776]
[1769944331196,3.79313892,2391.8,2390.9,3.9616167]
[1769944331494,3.79313892,2391.8,2391.1,3.9616167]
[1769944333194,4.00697535,2392.1,2391.1,3.9616167]
[1769944338902,4.00697535,2392.1,2390.8,2.65]
[1769944339098,4.00190447,2391.8,2390.6,2.092]
[1769944339996,4.00190447,2391.8,2390.6,6.0536167]
[1769944341691,4.00190447,2391.8,2390.6,2.092]
[1769944342695,4.00190447,2391.7,2390.6,2.092]
[1769944343298,4.00190447,2391.7,2390.7,3.9616167]
[1769944345201,4.00190447,2391.6,2390.7,3.9616167]
[1769944346898,4.00190447,2391.6,2390.6,2.092]
[1769944348603,4.00190447,2391.6,2390.6,6.0536167]
[1769944351907,4.00190447,2391.6,2390.7,3.9616167]
[1769944353306,4.00190447,2391.6,2390.5,3.9616167]
[1769944353503,4.00190447,2391.6,2390.6,3.7]
[1769944356104,4.00190447,2391.6,2390.5,3.9616167]
[1769944356304,4.00190447,2391.6,2390.4,3.7]
[1769944357108,4.00190447,2391.6,2390.5,3.9616167]
[1769944361402,4.00190447,2391.6,2390.6,4.02232557]
[1769944363914,3.76805802,2391.8,2390.6,4.02232557]
[1769944364114,3.76805802,2391.8,2390.7,3.70251828]
[1769944364715,3.76805802,2392.0,2390.7,3.70251828]
[1769944364916,3.76805802,2392.0,2391.0,3.70251828]
[1769944365117,0.00507088,2392.1,2391.2,3.70251828]
[1769944365410,0.00507088,2392.1,2391.2,5.79451828]
[1769944365619,0.0016118,2392.1,2391.3,3.70251828]
[1769944366008,3.76966982,2392.1,2391.1,3.70251828]
[1769944366212,3.76966982,2392.1,2391.2,3.7]
[1769944366512,3.76805802,2391.9,2390.7,9.90525052]
[1769944366712,3.76805802,2391.8,2390.7,7.40251828]
[1769944368715,3.76805802,2391.8,2390.8,3.70251828]
[1769944370725,3.76805802,2391.8,2390.7,3.7]
[1769944375020,3.76805802,2391.6,2390.7,3.7]
[1769944379324,3.76805802,2391.5,2390.7,3.7]
[1769944379825,3.76805802,2391.5,2390.4,3.70251828]
[1769944380022,2.42427864,2391.3,2390.2,3.70251828]
[1769944380219,3.76805802,2391.2,2390.2,3.70251828]
[1769944381719,3.76805802,2391.2,2389.9,6.20879885]
[1769944381927,3.76805802,2391.0,2389.9,3.70251828]
[1769944382123,6.19233666,2391.0,2389.8,0.00347674]
[1769944382323,3.76805802,2390.9,2389.8,0.00347674]
[1769944392137,3.76805802,2390.9,2389.8,3.97294015]
[1769944392436,3.76835895,2391.1,2389.8,3.97294015]
[1769944393030,36.16875591,2391.7,2389.8,3.97294015]
[1769944393031,3.76835895,2391.5,2389.8,3.97294015]
[1769944393228,3.76835895,2391.5,2389.9,3.96946341]
[1769944396832,3.76835895,2391.5,2390.0,3.96946341]
[1769944398332,3.76835895,2391.5,2390.1,3.96946341]
[1769944401230,3.76835895,2391.5,2390.2,3.96946341]
[1769944407254,3.76835895,2391.5,2390.3,3.96946341]
[1769944414860,3.76835895,2391.5,2390.3,7.68646341]
[1769944416864,3.76835895,2391.5,2390.4,3.96946341]
[1769944418665,3.76835895,2391.5,2390.3,3.717]
[1769944420065,3.76835895,2391.5,2390.3,7.78399052]
[1769944421265,3.76835895,2391.5,2390.3,10.29027109]